bitfinex-derivatives/quotes_ETHF0:USTF0_20250104
["timestamp","ask_amount","ask_price","bid_price","bid_amount"]
[1735966928364,4.79426221,3591.6,3591.5,1.00885388]
[1735966928564,4.79426221,3591.6,3591.5,1.28740388]
[1735966929064,0.41783799,3591.6,3591.5,1.28740388]
[1735966929967,0.41783799,3591.6,3591.5,1.00885388]
[1735966930358,0.69637799,3591.6,3591.5,1.00885388]
[1735966930559,0.41783799,3591.6,3591.5,1.28740388]
[1735966931958,0.41783799,3591.6,3591.5,1.00885388]
[1735966932166,0.41783799,3591.6,3591.5,1.28740388]
[1735966933669,3.69796833,3591.6,3591.5,1.28740388]
[1735966934165,3.69796833,3591.6,3591.5,2.35840388]
[1735966936580,3.2078,3591.7,3591.6,0.27854]
[1735966936768,3.2078,3591.7,3591.6,1.14874]
[1735966936972,3.2078,3591.7,3591.6,1.59454]
[1735966940784,2.18639641,3591.9,3591.6,1.316]
[1735966941085,2.18639641,3591.9,3591.8,1.28738388]
[1735966942289,2.18639641,3592.0,3591.9,0.27852]
[1735966943491,3.28013034,3592.0,3591.8,1.00885388]
[1735966943786,3.28013034,3592.0,3591.9,0.27852]
[1735966944687,6.48793034,3592.1,3591.9,0.27852]
[1735966944881,6.48793034,3592.1,3592.0,1.00885388]
[1735966945789,3.2078,3592.1,3592.0,1.00885388]
[1735966945986,3.62562783,3592.1,3592.0,1.00885388]
[1735966949087,3.90413783,3592.1,3592.0,1.00885388]
[1735966949392,4.34843783,3592.1,3592.0,1.00885388]
[1735966950983,4.34843783,3592.1,3591.6,1.316]
[1735966950984,0.27853,3591.8,3591.6,0.4458]
[1735966951188,0.4118,3591.7,3591.5,1.071]
[1735966951487,0.27856,3591.4,3591.3,6.57360031]
[1735966951889,1.28741388,3591.4,3591.3,6.57360031]
[1735966952091,1.28741388,3591.4,3591.3,5.89140031]
[1735966952490,0.27857,3591.2,3591.1,1.07]
[1735966952694,4.49522388,3591.2,3591.1,1.07]
[1735966953297,3.48637,3591.2,3591.1,1.07]
[1735966953895,8.28062205,3591.2,3591.1,1.07]
[1735966957296,9.28947593,3591.2,3591.1,1.07]
[1735966957490,0.27861,3590.8,3590.5,0.8493]
[1735966957692,0.27861,3590.8,3590.4,0.23553931]
[1735966957693,1.28747388,3590.6,3590.4,0.23553931]
[1735966958001,0.27863,3590.5,3590.4,1.071]
[1735966958296,0.27864,3590.4,3590.3,2.07985388]
[1735966958502,3.48644,3590.4,3590.3,2.07985388]
[1735966959912,3.2078,3590.4,3590.3,2.07985388]
[1735966960405,4.21665388,3590.4,3590.3,1.071]
[1735966960599,4.49529388,3590.4,3590.3,1.071]
[1735966961598,4.21665388,3590.4,3590.0,1.28752388]
[1735966961802,0.27865,3590.3,3590.1,1.071]
[1735966962200,0.4272,3590.2,3590.1,1.071]
[1735966963601,0.70585,3590.2,3590.1,1.071]
[1735966963801,0.4272,3590.2,3590.1,1.071]
[1735966966602,0.70586,3590.2,3590.0,2.07985388]
[1735966966801,0.4306,3590.1,3590.0,2.07985388]
[1735966967497,0.4306,3590.1,3590.0,1.00885388]
[1735966967709,0.70926,3590.1,3590.0,2.07985388]
[1735966967904,0.27868,3589.8,3589.7,0.8354]
[1735966968100,3.48648,3589.8,3589.7,1.071]
[1735966968504,3.92058,3589.8,3589.7,1.071]
[1735966969513,3.48648,3589.8,3589.7,1.071]
[1735966969806,3.2078,3589.8,3589.7,1.071]
[1735966970309,3.2078,3589.8,3589.7,1.34969]
[1735966971211,0.70926,3590.1,3589.8,0.27868]
[1735966971406,0.70926,3590.1,3590.0,1.00885388]
[1735966972509,0.4306,3590.1,3590.0,1.00885388]
[1735966973211,0.70926,3590.1,3590.0,1.00885388]
[1735966974405,3.635,3590.2,3590.0,1.00885388]
[1735966974608,3.91366,3590.2,3590.0,1.00885388]
[1735966975316,3.635,3590.2,3590.0,1.00885388]
[1735966975509,0.27866,3590.1,3590.0,1.00885388]
[1735966976614,3.2078,3590.2,3590.0,1.28751388]
[1735966976814,3.2078,3590.2,3590.1,0.27866]
[1735966979213,3.2078,3590.2,3590.0,1.00885388]
[1735966979616,3.2078,3590.2,3590.1,0.27866]
[1735966980715,3.48645,3590.2,3590.0,1.28751388]
[1735966980916,3.2078,3590.2,3590.0,1.00885388]
[1735966981112,3.2078,3590.2,3590.0,1.28752388]
[1735966981113,3.48645,3590.2,3590.0,1.28752388]
[1735966982716,3.2078,3590.2,3590.0,1.28752388]
[1735966982911,3.2078,3590.2,3590.1,0.27866]
[1735966985219,3.48645,3590.2,3590.1,1.071]
[1735966987924,4.21665388,3590.2,3589.8,1.071]
[1735966988221,0.27868,3589.9,3589.8,1.071]
[1735966989322,1.00885388,3590.0,3589.6,1.00885388]
[1735966989520,3.2078,3589.7,3589.6,2.07985388]
[1735966989919,3.6549,3589.7,3589.6,2.07985388]
[1735966990122,3.93359,3589.7,3589.6,2.07985388]
[1735966991022,3.6549,3589.7,3589.6,2.07985388]
[1735966992922,3.93359,3589.7,3589.6,2.07985388]
[1735966995428,3.93359,3589.7,3589.6,1.071]
[1735966996531,3.93359,3589.7,3589.5,1.28755388]
[1735966996830,3.93359,3589.7,3589.5,2.35855388]
[1735966997034,6.11537798,3589.7,3589.5,2.35855388]
[1735966997826,2.18178798,3589.6,3589.5,2.35855388]
[1735966998531,5.38958798,3589.6,3589.5,2.35855388]
[1735966999634,5.38958798,3589.6,3589.5,2.07985388]
[1735966999936,5.66828798,3589.6,3589.5,2.07985388]
[1735967001224,5.38958798,3589.6,3589.5,2.07985388]
[1735967001832,5.66828798,3589.6,3589.5,2.07985388]
[1735967002031,3.4865,3589.6,3589.5,2.07985388]
[1735967003228,7.18164825,3589.6,3589.5,2.07985388]
[1735967003934,7.18164825,3589.6,3589.5,2.08085388]
[1735967004631,3.97384825,3589.6,3589.5,2.08085388]
[1735967004830,7.18164825,3589.6,3589.5,2.08085388]
[1735967005632,0.69681527,3589.6,3589.5,2.08085388]
[1735967006026,3.90461527,3589.6,3589.5,2.08085388]
[1735967007029,3.62591527,3589.6,3589.5,2.35956388]
[1735967009933,6.90561786,3589.6,3589.5,2.35956388]
[1735967011338,3.62591527,3589.6,3589.5,2.35956388]
[1735967011539,0.41811527,3589.6,3589.5,2.35956388]
[1735967016740,3.69947623,3589.6,3589.5,2.35956388]
[1735967017738,0.41811527,3589.6,3589.5,2.35956388]
[1735967019135,8.00233949,3589.7,3589.6,0.2787]
[1735967022839,3.62591527,3589.7,3589.6,0.2787]
[1735967023134,0.41811527,3589.7,3589.6,0.2787]
[1735967024343,3.28307375,3589.8,3589.7,0.27869]
[1735967024548,3.28307375,3589.8,3589.7,1.28754388]
[1735967028944,3.28307375,3589.8,3589.7,0.27869]
[1735967029144,3.28307375,3589.8,3589.7,1.28754388]
[1735967030645,4.79453949,3589.9,3589.7,1.00885388]
[1735967030842,4.79453949,3589.9,3589.8,0.27868]
[1735967031042,8.00233949,3589.9,3589.8,0.71538]
[1735967033251,8.42183949,3589.9,3589.8,0.71538]
[1735967036259,8.76704431,3589.9,3589.8,0.71538]
[1735967036760,8.76704431,3589.9,3589.8,1.071]
[1735967037052,4.32409527,3589.9,3589.7,1.28754388]
[1735967037252,0.4387,3589.8,3589.7,2.35854388]
[1735967038459,5.57844431,3589.8,3589.7,2.35854388]
[1735967040347,11.06007486,3589.8,3589.7,1.34969]
[1735967040550,11.06007486,3589.8,3589.7,2.35854388]
[1735967043056,14.26787486,3589.8,3589.7,2.35854388]
[1735967044058,14.26787486,3589.8,3589.7,1.34969]
[1735967044252,14.26787486,3589.8,3589.7,2.35854388]
[1735967045961,13.82917486,3589.8,3589.7,2.35854388]
[1735967046763,8.34754431,3589.8,3589.7,2.35854388]
[1735967053954,5.13974431,3589.8,3589.7,2.35854388]
[1735967054155,8.34754431,3589.8,3589.7,2.35854388]
[1735967055258,8.62622431,3589.8,3589.7,2.07985388]
[1735967055452,8.34754431,3589.8,3589.7,2.35854388]
[1735967056852,8.34754431,3589.8,3589.7,1.28754388]
[1735967057055,0.27871,3589.5,3589.4,4.36316524]
[1735967057263,1.28756388,3589.5,3589.4,4.36316524]
[1735967058663,13.70082831,3589.5,3588.9,1.45105388]
[1735967058859,3.48654,3589.0,3588.9,1.45105388]
[1735967059455,3.2078,3589.0,3588.8,1.5029]
[1735967059764,3.2078,3589.0,3588.5,11.60736524]
[1735967059765,0.27877,3588.7,3588.6,0.64118401]
[1735967060666,0.27877,3588.7,3588.6,0.4136]
[1735967061168,0.69688527,3588.7,3588.6,0.4136]
[1735967063368,0.27878,3588.6,3588.5,1.071]
[1735967063570,3.48658,3588.6,3588.5,1.071]
[1735967063963,3.2078,3588.6,3588.4,0.4234]
[1735967064167,0.27878,3588.5,3588.4,0.4234]
[1735967064669,3.2078,3588.6,3588.4,0.4234]
[1735967064873,3.48658,3588.6,3588.4,0.4234]
[1735967065266,0.27878,3588.5,3588.4,0.4234]
[1735967066069,2.46265702,3588.5,3588.4,0.4234]
[1735967068081,5.67045702,3588.5,3588.4,0.4234]
[1735967069083,3.48658,3588.5,3588.4,0.4234]
[1735967071481,0.27878,3588.5,3588.4,0.4234]
[1735967071679,3.48658,3588.5,3588.4,0.4234]
[1735967083999,0.27878,3588.5,3588.4,0.4234]
[1735967084297,3.48658,3588.5,3588.4,0.4234]
[1735967087505,3.93558,3588.5,3588.4,0.4234]
[1735967090798,0.72778,3588.5,3588.4,0.4234]
[1735967091207,3.93558,3588.5,3588.4,0.4234]
[1735967091396,6.11945702,3588.5,3588.4,0.4234]
[1735967096006,3.93558,3588.5,3588.4,0.4234]
[1735967096504,3.48658,3588.5,3588.4,0.4234]
[1735967098708,6.76335435,3588.5,3588.4,0.4234]
[1735967099900,7.18160467,3588.5,3588.4,0.4234]
[1735967101406,3.90483032,3588.5,3588.4,0.4234]
[1735967101604,0.69703032,3588.5,3588.4,0.4234]
[1735967101805,3.90483032,3588.5,3588.4,0.4234]
[1735967102306,7.85949664,3588.5,3588.4,0.4234]
[1735967103506,8.6204361,3588.5,3588.4,0.4234]
[1735967105112,9.37540923,3588.5,3588.4,0.4234]
[1735967105911,9.09662923,3588.5,3588.1,4.36316524]
[1735967106115,1.172,3588.4,3588.2,0.411]
[1735967106304,1.5999,3588.4,3588.2,0.411]
[1735967107011,0.2788,3588.3,3588.2,0.68981]
[1735967107612,5.4126561,3588.3,3588.2,0.68981]
[1735967108114,5.4126561,3588.3,3588.2,0.411]
[1735967108302,5.4126561,3588.3,3588.2,0.68981]
[1735967110115,10.88323501,3588.3,3588.2,0.411]
[1735967110614,10.60443501,3588.3,3588.2,0.68981]
[1735967111113,10.88323501,3588.3,3588.2,0.68981]
[1735967112812,10.60443501,3588.3,3588.2,0.68981]
[1735967114014,10.60443501,3588.3,3588.2,0.411]
[1735967114317,10.88323501,3588.3,3588.2,0.411]
[1735967115015,10.60443501,3588.3,3588.2,0.68981]
[1735967116817,10.88323501,3588.3,3588.2,0.68981]
[1735967118318,10.88323501,3588.3,3588.2,0.411]
[1735967118514,10.88323501,3588.3,3588.2,0.68981]
[1735967118714,10.88323501,3588.3,3588.2,0.411]
[1735967119220,10.60443501,3588.3,3588.2,0.411]
[1735967119418,10.88323501,3588.3,3588.2,0.411]
[1735967121019,10.60443501,3588.3,3588.2,0.68981]
[1735967122122,10.88323501,3588.3,3588.2,0.411]
[1735967123022,14.09103501,3588.3,3588.2,0.411]
[1735967123328,14.09103501,3588.3,3588.2,0.68981]
[1735967124522,13.81223501,3588.3,3588.2,0.68981]
[1735967126427,13.81223501,3588.3,3588.2,0.411]
[1735967126628,13.81223501,3588.3,3588.2,0.68981]
[1735967129329,13.81223501,3588.3,3588.2,1.69866388]
[1735967130221,10.60443501,3588.3,3588.2,1.69866388]
[1735967130925,3.28544766,3588.3,3588.2,10.46779119]
[1735967132033,2.18958004,3588.3,3588.2,10.46779119]
[1735967132632,2.18958004,3588.3,3588.2,9.45893731]
[1735967132826,2.18958004,3588.3,3588.2,10.46779119]
[1735967133229,1.50718004,3588.3,3588.2,15.46779119]
[1735967133435,0.59758004,3588.4,3588.2,10.18898119]
[1735967133738,0.59758004,3588.4,3588.3,0.2788]
[1735967134934,6.49324766,3588.7,3588.3,9.04832731]
[1735967135141,6.49324766,3588.7,3588.6,1.28763388]
[1735967135438,3.28544766,3588.7,3588.6,1.28763388]
[1735967135829,3.28544766,3588.7,3588.6,2.17883388]
[1735967136239,3.28544766,3589.1,3589.0,0.27874]
[1735967136535,3.28544766,3589.1,3589.0,1.071]
[1735967137240,0.41816015,3589.1,3589.0,1.071]
[1735967138036,0.41816015,3589.1,3589.0,1.34974]
[1735967138334,0.41816015,3589.1,3588.9,1.071]
[1735967138530,4.0768,3589.0,3588.9,1.071]
[1735967140037,4.49496015,3589.0,3588.9,1.071]
[1735967140442,4.49496015,3589.0,3588.8,0.27876]
[1735967141932,0.41816015,3588.9,3588.8,0.27876]
[1735967143540,3.69574883,3588.9,3588.8,0.27876]
[1735967146932,4.14958868,3589.0,3588.8,0.27876]
[1735967147139,3.2078,3588.9,3588.8,0.27876]
[1735967151848,3.27758868,3589.2,3588.7,2.07985388]
[1735967152047,3.27758868,3589.2,3589.1,1.28759388]
[1735967153849,6.48538868,3589.4,3589.1,1.00885388]
[1735967154043,6.48538868,3589.4,3589.3,0.27873]
[1735967154239,3.27758868,3589.4,3589.3,1.28758388]
[1735967155146,3.72378868,3589.5,3589.4,0.27872]
[1735967155347,3.72378868,3589.5,3589.4,1.34972]
[1735967156949,0.4462,3589.5,3589.4,1.34972]
[1735967160848,0.4462,3589.5,3589.4,1.071]
[1735967161049,0.72491,3589.5,3589.4,1.071]
[1735967162154,0.4462,3589.5,3589.4,1.071]
[1735967162659,0.72491,3589.5,3589.4,1.071]
[1735967163559,0.4462,3589.5,3589.4,1.071]
[1735967163861,0.72491,3589.5,3589.4,1.071]
[1735967164256,0.4462,3589.5,3589.4,1.071]
[1735967164456,0.72491,3589.5,3589.4,1.071]
[1735967165160,0.4462,3589.5,3589.4,1.071]
[1735967166562,0.72491,3589.5,3589.4,1.071]
[1735967168164,3.93271,3589.5,3589.4,1.071]
[1735967169259,7.21029868,3589.5,3589.4,1.071]
[1735967170165,0.27872,3589.4,3589.3,2.07985388]
[1735967171763,6.76410868,3589.4,3589.3,2.07985388]
[1735967172971,7.18224124,3589.4,3589.3,2.07985388]
[1735967173269,6.90352124,3589.4,3589.3,2.07985388]
[1735967173567,7.18224124,3589.4,3589.3,2.07985388]
[1735967174869,6.90352124,3589.4,3589.3,2.07985388]
[1735967175268,7.18224124,3589.4,3589.3,2.07985388]
[1735967175667,3.90465256,3589.4,3589.3,2.07985388]
[1735967175970,3.62593256,3589.4,3589.3,2.35858388]
[1735967176172,0.41813256,3589.4,3589.3,2.35858388]
[1735967177063,4.82679688,3589.5,3589.3,2.07985388]
[1735967177259,4.82679688,3589.5,3589.4,1.10162]
[1735967178068,0.4462,3589.5,3589.4,1.10162]
[1735967180262,3.72541185,3589.5,3589.4,1.10162]
[1735967180465,3.72541185,3589.5,3589.4,2.17262]
[1735967181573,4.14351847,3589.5,3589.4,2.17262]
[1735967183079,0.86430662,3589.5,3589.4,2.17262]
[1735967184278,0.4462,3589.5,3589.4,2.17262]
[1735967187279,4.14492609,3589.5,3589.4,2.17262]
[1735967190379,3.72682188,3589.5,3589.4,2.17262]
[1735967193085,4.14491659,3589.5,3589.4,2.17262]
[1735967196579,0.86429471,3589.5,3589.4,2.17262]
[1735967200884,0.86429471,3589.5,3589.4,1.8939]
[1735967201083,0.86429471,3589.5,3589.4,2.17262]
[1735967201481,0.86429471,3589.5,3589.4,1.75952]
[1735967201678,1.27579471,3589.5,3589.4,1.34972]
[1735967201977,1.55450471,3589.5,3589.4,1.34972]
[1735967202585,5.93510159,3589.5,3589.4,1.34972]
[1735967202887,5.65639159,3589.5,3589.4,1.34972]
[1735967203788,8.86419159,3589.5,3589.4,1.34972]
[1735967204086,4.48359471,3589.5,3589.4,1.34972]
[1735967208293,9.140649,3589.5,3589.4,1.34972]
[1735967210081,9.140649,3589.5,3589.4,1.071]
[1735967211893,14.89937719,3589.5,3589.4,1.071]
[1735967212893,10.23288362,3589.5,3589.4,1.071]
[1735967214095,9.42879828,3589.5,3589.4,1.071]
[1735967215487,4.76230471,3589.5,3589.4,1.071]
[1735967218495,14.89980112,3589.5,3589.4,1.071]
[1735967221786,14.62109112,3589.5,3589.4,1.34972]
[1735967222192,14.89980112,3589.5,3589.4,1.34972]
[1735967222700,9.42922221,3589.5,3589.4,1.34972]
[1735967223495,9.15051221,3589.5,3589.4,1.34972]
[1735967223696,9.15051221,3589.5,3589.4,1.77202]
[1735967224695,9.42922221,3589.5,3589.4,1.77202]
[1735967225101,9.42922221,3589.5,3589.4,1.4933]
[1735967225300,9.42922221,3589.5,3589.4,1.77202]
[1735967225801,9.15051221,3589.5,3589.4,1.77202]
[1735967228396,9.42922221,3589.5,3589.4,1.071]
[1735967228695,9.42922221,3589.5,3589.2,5.67044719]
[1735967228900,9.42922221,3589.5,3589.2,6.74144719]
[1735967229903,9.15051221,3589.5,3589.4,1.00885388]
[1735967230603,9.53607891,3589.5,3589.4,1.00885388]
[1735967230802,9.53607891,3589.5,3589.4,1.28757388]
[1735967231903,8.86386022,3589.5,3589.4,1.28757388]
[1735967233203,8.45236022,3589.5,3589.4,1.28757388]
[1735967233403,8.45236022,3589.5,3589.4,1.70037388]
[1735967234102,8.45236022,3589.5,3589.4,6.08323719]
[1735967234405,8.00616022,3589.5,3589.4,6.08323719]
[1735967235001,4.79836022,3589.5,3589.4,6.08323719]
[1735967235205,0.41811759,3589.5,3589.4,6.08323719]
[1735967236410,3.2851866,3589.5,3589.4,1.42165388]
[1735967236605,3.2851866,3589.5,3589.4,1.70037388]
[1735967238912,0.41811759,3589.6,3589.5,0.27871]
[1735967239410,0.41811759,3589.6,3589.5,0.71561]
[1735967240412,0.41811759,3589.6,3589.5,5.10112492]
[1735967243212,0.41811759,3589.6,3589.5,0.71561]
[1735967243411,0.41811759,3589.6,3589.5,1.72446388]
[1735967244714,0.41811759,3589.6,3589.5,1.28756388]
[1735967244715,4.79836022,3589.6,3589.5,1.28756388]
[1735967245814,5.04898594,3589.6,3589.5,1.28756388]
[1735967246212,8.25678594,3589.6,3589.5,1.28756388]
[1735967247211,3.62591759,3589.6,3589.5,1.28756388]
[1735967248415,13.72736485,3589.6,3589.5,2.35856388]
[1735967248613,13.72736485,3589.6,3589.5,1.071]
[1735967248818,13.72736485,3589.6,3589.2,4.38551492]
[1735967248819,0.27871,3589.5,3589.2,4.38551492]
[1735967249007,0.4338,3589.5,3589.2,5.45651492]
[1735967249210,0.27873,3589.3,3589.2,5.45651492]
[1735967249820,4.65893261,3589.3,3589.2,1.071]
[1735967250210,5.08853261,3589.3,3589.2,1.071]
[1735967251119,5.5066502,3589.3,3589.2,1.071]
[1735967251313,8.7144502,3589.3,3589.2,1.071]
[1735967251519,8.7144502,3589.3,3589.1,1.00885388]
[1735967251819,8.7144502,3589.3,3589.1,2.07985388]
[1735967253419,3.2078,3589.2,3589.1,2.07985388]
[1735967253814,3.62591759,3589.2,3589.1,2.07985388]
[1735967254516,3.90464759,3589.2,3589.1,2.07985388]
[1735967254721,3.90464759,3589.2,3589.1,1.071]
[1735967254926,4.31584759,3589.2,3589.0,4.38551492]
[1735967255115,5.32470147,3589.2,3589.0,5.45651492]
[1735967255312,0.27874,3589.1,3589.0,4.38551492]
[1735967256022,0.27874,3589.1,3589.0,3.70311492]
[1735967256423,0.27876,3588.9,3588.8,1.00885388]
[1735967256620,0.4302,3589.0,3588.8,1.00885388]
[1735967257023,0.27876,3588.9,3588.8,1.00885388]
[1735967257930,5.07340566,3588.9,3588.8,1.00885388]
[1735967258227,4.79464566,3588.9,3588.8,1.00885388]
[1735967259122,5.21374566,3588.9,3588.8,1.00885388]
[1735967260125,0.83721759,3588.9,3588.8,1.00885388]
[1735967262331,4.11747523,3588.9,3588.8,1.00885388]
[1735967262533,4.11747523,3588.9,3588.8,1.28762388]
[1735967262830,4.11747523,3588.9,3588.8,1.00885388]
[1735967264228,4.11747523,3588.9,3588.8,1.28762388]
[1735967267641,3.69935764,3588.9,3588.8,1.28762388]
[1735967271048,0.4191,3588.9,3588.8,1.28762388]
[1735967275557,2.60453148,3588.9,3588.8,1.28762388]
[1735967277146,4.11754548,3588.9,3588.8,1.28762388]
[1735967278044,7.32534548,3588.9,3588.8,1.28762388]
[1735967280048,7.32534548,3588.9,3588.8,1.70652388]
[1735967280851,5.81209057,3588.9,3588.8,1.70652388]
[1735967281950,2.60429057,3588.9,3588.8,1.70652388]
[1735967284255,2.18519057,3588.9,3588.8,1.70652388]
[1735967286661,3.28025764,3589.0,3588.9,0.27876]
[1735967286662,3.69841821,3589.0,3588.9,0.27876]
[1735967286860,3.69841821,3589.0,3588.9,0.72176]
[1735967290556,4.79468864,3589.1,3588.9,0.443]
[1735967290758,4.79468864,3589.1,3589.0,1.28760388]
[1735967291959,0.69690057,3589.1,3589.0,1.28760388]
[1735967294664,5.34329345,3589.1,3589.0,1.28760388]
[1735967296464,8.55109345,3589.1,3589.0,1.28760388]
[1735967297459,14.02175354,3589.1,3589.0,1.28760388]
[1735967297660,13.74301354,3589.1,3589.0,1.28760388]
[1735967298866,10.53521354,3589.1,3589.0,1.28760388]
[1735967299165,5.06455345,3589.1,3589.0,1.28760388]
[1735967300664,0.41816057,3589.1,3589.0,1.28760388]
[1735967303465,4.79997281,3589.1,3589.0,1.28760388]
[1735967310271,4.79997281,3589.1,3589.0,2.35860388]
[1735967312670,5.07871281,3589.1,3589.0,2.07985388]
[1735967313474,4.79997281,3589.1,3589.0,2.35860388]
[1735967314174,4.79997281,3589.1,3589.0,2.07985388]
[1735967314373,5.07871281,3589.1,3589.0,2.07985388]
[1735967317379,5.07871281,3589.1,3589.0,2.35860388]
[1735967319780,4.79997281,3589.1,3589.0,2.35860388]
[1735967320183,5.07871281,3589.1,3589.0,2.35860388]
[1735967323168,0.69690057,3589.1,3589.0,2.35860388]
[1735967324483,0.69690057,3589.1,3589.0,2.07985388]
[1735967325779,0.69690057,3589.1,3589.0,2.35860388]
[1735967326576,0.69690057,3589.1,3589.0,2.07985388]
[1735967329878,0.69690057,3589.1,3589.0,2.35860388]
[1735967331581,0.41816057,3589.1,3589.0,2.35860388]
[1735967334878,0.69690057,3589.1,3589.0,2.35860388]
[1735967335284,5.06991868,3589.1,3589.0,2.35860388]
[1735967335481,5.34865868,3589.1,3589.0,2.35860388]
[1735967336688,5.06991868,3589.1,3589.0,2.35860388]
[1735967337182,5.34865868,3589.1,3589.0,2.35860388]
[1735967338089,5.06991868,3589.1,3589.0,2.35860388]
[1735967339985,5.34865868,3589.1,3589.0,2.35860388]
[1735967341495,10.81931877,3589.1,3589.0,2.35860388]
[1735967346293,10.81931877,3589.1,3589.0,2.07985388]
[1735967347585,10.81931877,3589.1,3589.0,2.35860388]
[1735967349293,10.81931877,3589.1,3589.0,2.07985388]
[1735967349595,10.54057877,3589.1,3589.0,2.35860388]
[1735967350299,10.54057877,3589.1,3589.0,2.07985388]
[1735967350500,10.81931877,3589.1,3589.0,2.07985388]
[1735967350797,10.81931877,3589.1,3589.0,2.35860388]
[1735967351796,10.81931877,3589.1,3589.0,2.07985388]
[1735967352402,10.54057877,3589.1,3589.0,2.35860388]
[1735967354701,10.54057877,3589.1,3589.0,2.07985388]
[1735967354905,10.81931877,3589.1,3589.0,2.07985388]
[1735967356507,5.34865868,3589.1,3589.0,2.07985388]
[1735967356702,5.34865868,3589.1,3589.0,1.071]
[1735967357006,5.34865868,3589.1,3589.0,2.07985388]
[1735967358002,0.69690057,3589.1,3589.0,2.07985388]
[1735967359203,5.34865868,3589.1,3589.0,2.07985388]
[1735967364014,14.0347199,3589.1,3589.0,2.07985388]
[1735967367107,14.0347199,3589.1,3589.0,1.00885388]
[1735967368015,8.55645868,3589.1,3589.0,1.00885388]
[1735967368607,8.96805868,3589.1,3589.0,1.00885388]
[1735967368806,4.31630057,3589.1,3589.0,1.00885388]
[1735967370411,8.96805868,3589.1,3589.0,1.00885388]
[1735967370711,8.27771868,3589.1,3589.0,1.00885388]
[1735967370900,5.06991868,3589.1,3589.0,1.28760388]
[1735967371303,5.06991868,3589.1,3589.0,1.73410388]
[1735967373016,3.28528416,3589.2,3589.1,0.27874]
[1735967374005,3.28528416,3589.2,3589.1,6.85674862]
[1735967374506,3.28528416,3589.2,3589.1,7.8656025]
[1735967375315,3.70344473,3589.3,3589.2,0.27873]
[1735967375906,3.70344473,3589.3,3589.2,1.00885388]
[1735967376112,3.98217473,3589.3,3589.2,1.00885388]
[1735967376308,0.27874,3589.1,3589.0,6.57800862]
[1735967376513,0.27875,3589.0,3588.9,7.5868625]
[1735967376707,1.57555,3589.0,3588.9,7.5868625]
[1735967376915,1.2968,3589.0,3588.9,7.5868625]
[1735967377613,1.57555,3589.0,3588.9,7.5868625]
[1735967378118,6.37408945,3589.0,3588.9,1.00885388]
[1735967378716,6.09533945,3589.0,3588.9,1.00885388]
[1735967380018,9.30313945,3589.0,3588.9,1.00885388]
[1735967380515,9.58188945,3589.0,3588.7,0.27877]
[1735967380817,0.27876,3588.9,3588.8,1.00885388]
[1735967382116,10.53960463,3588.9,3588.8,1.00885388]
[1735967382417,10.53960463,3588.9,3588.3,4.79935012]
[1735967382418,0.27878,3588.6,3588.3,4.66355012]
[1735967382619,3.2078,3588.4,3588.3,4.66355012]
[1735967382919,3.2078,3588.4,3588.3,5.672404]
[1735967383717,3.2078,3588.4,3588.3,1.28765388]
[1735967383921,3.2078,3588.4,3588.3,1.00885388]
[1735967384921,3.62596057,3588.4,3588.3,1.28765388]
[1735967386621,3.62596057,3588.4,3588.3,0.2788]
[1735967386923,3.62596057,3588.4,3588.3,1.28765388]
[1735967388618,6.90597046,3588.4,3588.3,1.28765388]
[1735967389917,3.62596057,3588.4,3588.3,1.28765388]
[1735967392221,6.90448561,3588.4,3588.3,1.28765388]
[1735967392922,3.69668561,3588.4,3588.3,1.28765388]
[1735967394318,0.41816057,3588.4,3588.3,1.28765388]
[1735967397225,6.90294565,3588.4,3588.3,1.28765388]
[1735967398519,6.48478508,3588.4,3588.3,1.28765388]
[1735967399219,6.48478508,3588.4,3588.1,1.071]
[1735967399220,6.76358508,3588.4,3588.1,1.00885388]
[1735967399420,6.48478508,3588.4,3588.1,1.28767388]
[1735967399616,6.48478508,3588.4,3588.2,1.00885388]
[1735967399927,0.2788,3588.3,3588.2,1.00885388]
[1735967400830,6.76358508,3588.4,3588.2,1.28766388]
[1735967401129,0.41826847,3588.3,3588.2,1.28766388]
[1735967402027,0.41826847,3588.3,3588.2,1.00885388]
[1735967402222,0.69706847,3588.3,3588.2,1.00885388]
[1735967402422,3.97343102,3588.3,3588.2,1.00885388]
[1735967403129,3.69463102,3588.3,3588.2,1.00885388]
[1735967403819,3.69463102,3588.3,3588.2,1.28766388]
[1735967404829,6.48416255,3588.4,3588.2,1.00885388]
[1735967405032,6.48416255,3588.4,3588.3,0.2788]
[1735967406035,6.90241611,3588.4,3588.3,0.7194]
[1735967406717,3.2078,3588.4,3588.3,0.7194]
[1735967411537,3.2078,3588.4,3588.3,0.4406]
[1735967411742,3.2078,3588.4,3588.3,0.7194]
[1735967412143,6.76296255,3588.4,3588.3,0.4406]
[1735967412337,6.48416255,3588.4,3588.3,0.7194]
[1735967412538,6.76296255,3588.4,3588.3,0.4406]
[1735967412841,6.48416255,3588.4,3588.3,0.2788]
[1735967413137,6.48416255,3588.4,3588.2,1.00885388]
[1735967413138,6.93706255,3588.4,3588.2,1.00885388]
[1735967413338,7.21586255,3588.4,3588.2,1.28766388]
[1735967413537,7.35532164,3588.4,3588.2,1.00885388]
[1735967413740,7.35532164,3588.4,3588.3,0.2788]
[1735967414743,4.07895909,3588.4,3588.3,0.2788]
[1735967419745,0.27882,3588.1,3587.9,0.4442]
[1735967419941,0.8561,3588.0,3587.9,0.72303]
[1735967421049,1.27435909,3588.0,3587.9,0.72303]
[1735967421245,1.55318909,3588.0,3587.9,0.4442]
[1735967421448,2.28321297,3588.0,3587.4,4.38475012]
[1735967421642,0.27885,3587.7,3587.5,1.28771388]
[1735967421841,0.71694,3587.9,3587.7,0.27885]
[1735967422146,0.4381,3587.9,3587.7,1.28770388]
[1735967422538,6.19382224,3587.9,3587.7,1.28770388]
[1735967422741,5.91498224,3587.9,3587.8,0.27884]
[1735967423049,5.47688224,3587.9,3587.8,0.27884]
[1735967424041,4.79282451,3587.9,3587.8,0.27884]
[1735967424247,5.07165451,3587.9,3587.7,1.28770388]
[1735967425148,0.41831979,3587.8,3587.7,1.28770388]
[1735967426345,4.79282451,3587.9,3587.8,0.27884]
[1735967426647,4.79282451,3587.9,3587.8,0.69384]
[1735967426849,4.79282451,3587.9,3587.8,1.11794]
[1735967427552,0.41831979,3587.9,3587.8,1.11794]
[1735967429253,1.13254979,3587.9,3587.7,2.35869388]
[1735967429452,1.13254979,3587.9,3587.7,2.35870388]